[Event "*** Qualifier 1: Titled Tuesday 3|2 Blitz"]
[Site "Chess.com"]
[Date "2017.04.04"]
[Round "6"]
[White "SantoBlue"]
[Black "TheNextLevelFan"]
[Result "1-0"]
[WhiteElo "2551"]
[BlackElo "2378"]
[TimeControl "180+2"]
[EndTime "14:29:05 PDT"]
[Termination "SantoBlue won by resignation"]

1. e4 {[%clk 0:03:02]} 1... e5 {[%clk 0:03:00.1]} 2. Nf3 {[%clk 0:03:02.7]} 2...
Nc6 {[%clk 0:03:01.7]} 3. Bb5 {[%clk 0:03:04.3]} 3... a6 {[%clk 0:03:02.7]} 4.
Ba4 {[%clk 0:03:06]} 4... Nf6 {[%clk 0:03:04]} 5. O-O {[%clk 0:03:07]} 5... Be7
{[%clk 0:03:05.6]} 6. Re1 {[%clk 0:03:06.6]} 6... b5 {[%clk 0:03:07.2]} 7. Bb3
{[%clk 0:03:08.1]} 7... O-O {[%clk 0:03:08.9]} 8. h3 {[%clk 0:03:08.3]} 8... d6
{[%clk 0:03:09.8]} 9. c3 {[%clk 0:03:10]} 9... Nb8 {[%clk 0:03:10.8]} 10. d4
{[%clk 0:03:10.6]} 10... Nbd7 {[%clk 0:03:12]} 11. c4 {[%clk 0:03:10.7]} 11...
c6 {[%clk 0:03:09.3]} 12. Nc3 {[%clk 0:03:11.8]} 12... Bb7 {[%clk 0:03:03.7]}
13. Be3 {[%clk 0:03:11.1]} 13... Re8 {[%clk 0:03:02.3]} 14. a3 {[%clk
0:03:11.4]} 14... Bf8 {[%clk 0:02:55.4]} 15. Rc1 {[%clk 0:03:10.3]} 15... exd4
{[%clk 0:02:42.7]} 16. Nxd4 {[%clk 0:03:06.9]} 16... c5 {[%clk 0:02:43.4]} 17.
Nf5 {[%clk 0:03:06.8]} 17... Nxe4 {[%clk 0:02:38.7]} 18. Nxe4 {[%clk 0:03:06.9]}
18... Bxe4 {[%clk 0:02:39.1]} 19. Nxd6 {[%clk 0:03:08.2]} 19... Bxd6 {[%clk
0:02:13.9]} 20. Qxd6 {[%clk 0:03:06.4]} 20... bxc4 {[%clk 0:01:53.5]} 21. Bxc4
{[%clk 0:03:06.9]} 21... Ne5 {[%clk 0:01:55]} 22. Qxd8 {[%clk 0:03:03.7]} 22...
Rexd8 {[%clk 0:01:56.2]} 23. Bxc5 {[%clk 0:02:58]} 23... Nxc4 {[%clk 0:01:55.3]}
24. Rxc4 {[%clk 0:02:58.8]} 24... Bd5 {[%clk 0:01:44.6]} 25. Rc3 {[%clk
0:02:59.5]} 25... Be6 {[%clk 0:01:37.4]} 26. b4 {[%clk 0:02:59.7]} 26... Rd5
{[%clk 0:01:29.3]} 27. g4 {[%clk 0:02:57.9]} 27... h5 {[%clk 0:01:29.6]} 28. f3
{[%clk 0:02:57.2]} 28... Kh7 {[%clk 0:01:28.6]} 29. Kf2 {[%clk 0:02:57.9]} 29...
Rad8 {[%clk 0:01:18.1]} 30. Kg3 {[%clk 0:02:58.4]} 30... Rd3 {[%clk 0:01:16]}
31. Re3 {[%clk 0:02:57.8]} 31... Rd1 {[%clk 0:01:13.8]} 32. Re5 {[%clk
0:02:54.3]} 32... hxg4 {[%clk 0:01:08]} 33. hxg4 {[%clk 0:02:55.1]} 33... R8d3
{[%clk 0:01:04.5]} 34. Rxd3 {[%clk 0:02:53.2]} 34... Rxd3 {[%clk 0:01:05.2]} 35.
a4 {[%clk 0:02:53.4]} 35... Ra3 {[%clk 0:01:04.1]} 36. a5 {[%clk 0:02:47.8]}
36... Rb3 {[%clk 0:00:59.9]} 37. Rh5+ {[%clk 0:02:46.1]} 37... Kg6 {[%clk
0:01:00.2]} 38. Re5 {[%clk 0:02:47]} 38... Kf6 {[%clk 0:00:55.5]} 39. Re4 {[%clk
0:02:37.6]} 39... Bd5 {[%clk 0:00:55.7]} 40. Rf4+ {[%clk 0:02:38.9]} 40... Ke6
{[%clk 0:00:53.8]} 41. Kf2 {[%clk 0:02:37.2]} 41... f6 {[%clk 0:00:47.2]} 42.
Bf8 {[%clk 0:02:33.8]} 42... g6 {[%clk 0:00:47]} 43. Bg7 {[%clk 0:02:33.6]}
43... f5 {[%clk 0:00:47.4]} 44. g5 {[%clk 0:02:29.2]} 44... Bc6 {[%clk
0:00:47.6]} 45. Bf6 {[%clk 0:02:29]} 45... Bd5 {[%clk 0:00:48.6]} 46. Kg3 {[%clk
0:02:28]} 46... Kd7 {[%clk 0:00:47.7]} 47. Bg7 {[%clk 0:02:25.9]} 47... Kc6
{[%clk 0:00:48.6]} 48. Bf8 {[%clk 0:02:27.2]} 48... Kd7 {[%clk 0:00:45.8]} 49.
Bc5 {[%clk 0:02:28.2]} 49... Ke6 {[%clk 0:00:46.7]} 50. Kf2 {[%clk 0:02:29.2]}
50... Bc6 {[%clk 0:00:47.6]} 51. Ke2 {[%clk 0:02:29.8]} 51... Bd5 {[%clk
0:00:48.3]} 52. Be3 {[%clk 0:02:30]} 52... Rb2+ {[%clk 0:00:45.7]} 53. Bd2
{[%clk 0:02:31]} 53... Rb3 {[%clk 0:00:46.5]} 54. Be3 {[%clk 0:02:32.4]} 54...
Rb2+ {[%clk 0:00:47.6]} 55. Kd3 {[%clk 0:02:33.1]} 55... Rb3+ {[%clk 0:00:48]}
56. Kd2 {[%clk 0:02:33.4]} 56... Rb2+ {[%clk 0:00:48.7]} 57. Ke1 {[%clk
0:02:23.2]} 57... Rb3 {[%clk 0:00:49.2]} 58. Ke2 {[%clk 0:02:24.7]} 58... Rb2+
{[%clk 0:00:50.4]} 59. Bd2 {[%clk 0:02:26]} 59... Rb3 {[%clk 0:00:51.5]} 60. Be1
{[%clk 0:02:27.5]} 60... Rb2+ {[%clk 0:00:49.4]} 61. Ke3 {[%clk 0:02:25.9]}
61... Rb3+ {[%clk 0:00:50]} 62. Kf2 {[%clk 0:02:27.1]} 62... Rb2+ {[%clk
0:00:51.3]} 63. Kg3 {[%clk 0:02:28.4]} 63... Rb3 {[%clk 0:00:52.2]} 64. Kf2
{[%clk 0:02:09.9]} 64... Rb2+ {[%clk 0:00:52.9]} 65. Ke3 {[%clk 0:02:11.5]}
65... Rb3+ {[%clk 0:00:53.6]} 66. Kd4 {[%clk 0:02:13.2]} 66... Rxf3 {[%clk
0:00:54.1]} 67. Rh4 {[%clk 0:02:14.8]} 67... Rf1 {[%clk 0:00:51.3]} 68. Bg3
{[%clk 0:02:10.8]} 68... Rc1 {[%clk 0:00:51.6]} 69. Rh6 {[%clk 0:02:07.7]} 69...
Rc4+ {[%clk 0:00:52.1]} 70. Kd3 {[%clk 0:02:09.2]} 70... Kf7 {[%clk 0:00:41.3]}
71. Bd6 {[%clk 0:02:06.6]} 71... Rg4 {[%clk 0:00:38.3]} 72. Rh7+ {[%clk
0:02:03.8]} 72... Ke6 {[%clk 0:00:39.4]} 73. Be7 {[%clk 0:01:57.6]} 73... f4
{[%clk 0:00:40.6]} 74. Rg7 {[%clk 0:01:44.8]} 74... Kf5 {[%clk 0:00:39.2]} 75.
Bf6 {[%clk 0:01:42.7]} 75... f3 {[%clk 0:00:40.3]} 76. Re7 {[%clk 0:01:43.2]}
76... f2 {[%clk 0:00:25.7]} 77. Re5+ {[%clk 0:01:34]} 77... Kf4 {[%clk
0:00:26.7]} 78. Ke2 {[%clk 0:01:35.4]} 78... Kg3 {[%clk 0:00:14.6]} 79. Rxd5
{[%clk 0:01:34.2]} 79... Re4+ {[%clk 0:00:15.5]} 80. Kd3 {[%clk 0:01:35.4]}
80... f1=Q+ {[%clk 0:00:14.7]} 81. Kxe4 {[%clk 0:01:36.6]} 81... Qc4+ {[%clk
0:00:12.6]} 82. Rd4 {[%clk 0:01:34.7]} 82... Qc6+ {[%clk 0:00:13.1]} 83. Ke5
{[%clk 0:01:35.4]} 83... Kf3 {[%clk 0:00:13.1]} 84. Rd5 {[%clk 0:01:25.1]} 84...
Qc3+ {[%clk 0:00:13]} 85. Rd4 {[%clk 0:01:26.2]} 85... Qc8 {[%clk 0:00:13]} 86.
Kd6 {[%clk 0:01:26.8]} 86... Qb7 {[%clk 0:00:13.7]} 87. Ke6 {[%clk 0:01:27.2]}
87... Qc6+ {[%clk 0:00:12.1]} 88. Kf7 {[%clk 0:01:28.2]} 88... Qc2 {[%clk
0:00:11.9]} 89. Kg7 {[%clk 0:01:21.7]} 89... Ke3 {[%clk 0:00:08.4]} 90. Kh6
{[%clk 0:01:22.8]} 90... Kf3 {[%clk 0:00:09]} 91. Rd6 {[%clk 0:01:23.5]} 91...
Kg4 {[%clk 0:00:08.6]} 92. Rxa6 {[%clk 0:01:19.9]} 92... Kf5 {[%clk 0:00:08.8]}
93. Ra7 {[%clk 0:01:19.1]} 93... Qh2+ {[%clk 0:00:08.5]} 94. Kg7 {[%clk
0:01:20.5]} 94... Qg1 {[%clk 0:00:09.3]} 95. Rc7 {[%clk 0:01:19.9]} 95... Qb1
{[%clk 0:00:09.3]} 96. Rc5+ {[%clk 0:01:19.7]} 96... Ke6 {[%clk 0:00:09.9]} 97.
Re5+ {[%clk 0:01:19.3]} 97... Kd7 {[%clk 0:00:10.6]} 98. Re7+ {[%clk 0:01:18.2]}
98... Kd6 {[%clk 0:00:11.6]} 99. Rb7 {[%clk 0:01:19]} 99... Kc6 {[%clk
0:00:12.9]} 100. Rb6+ {[%clk 0:01:20]} 100... Kd5 {[%clk 0:00:14.2]} 101. a6
{[%clk 0:01:20.8]} 101... Qf5 {[%clk 0:00:14.6]} 102. Rb7 {[%clk 0:01:20.5]}
102... Qe6 {[%clk 0:00:14.7]} 103. a7 {[%clk 0:01:21.4]} 103... Qc8 {[%clk
0:00:14.8]} 104. Rf7 {[%clk 0:01:20.7]} 104... Kc4 {[%clk 0:00:14.7]} 105. Be7
{[%clk 0:01:19.1]} 105... Kb5 {[%clk 0:00:15.6]} 106. Rf8 {[%clk 0:01:18.4]}
106... Qd7 {[%clk 0:00:15.4]} 107. a8=Q {[%clk 0:01:17.7]} 107... Qxe7+ {[%clk
0:00:16.7]} 108. Rf7 {[%clk 0:01:19]} 1-0

[Event "*** Qualifier 1: Titled Tuesday 3|2 Blitz"]
[Site "Chess.com"]
[Date "2017.04.04"]
[Round "6"]
[White "CalinGheorghiu"]
[Black "jeaston1"]
[Result "1/2-1/2"]
[WhiteElo "2247"]
[BlackElo "2169"]
[TimeControl "180+2"]
[EndTime "14:30:28 PDT"]
[Termination "Game drawn - insufficient material"]

1. d4 {[%clk 0:02:45.1]} 1... d5 {[%clk 0:03:00.5]} 2. c4 {[%clk 0:02:45.6]}
2... dxc4 {[%clk 0:03:02.4]} 3. e3 {[%clk 0:02:46.1]} 3... Nf6 {[%clk
0:03:03.9]} 4. Bxc4 {[%clk 0:02:45.4]} 4... e6 {[%clk 0:03:05.1]} 5. Nf3 {[%clk
0:02:45.5]} 5... a6 {[%clk 0:03:06.5]} 6. Nc3 {[%clk 0:02:46.1]} 6... b5 {[%clk
0:03:06.5]} 7. Bd3 {[%clk 0:02:47.6]} 7... Bb7 {[%clk 0:03:07.9]} 8. O-O {[%clk
0:02:48.2]} 8... c5 {[%clk 0:03:09.2]} 9. dxc5 {[%clk 0:02:47.4]} 9... Bxc5
{[%clk 0:03:09.8]} 10. Qe2 {[%clk 0:02:48.9]} 10... Nbd7 {[%clk 0:03:10.4]} 11.
e4 {[%clk 0:02:50]} 11... O-O {[%clk 0:03:09.2]} 12. a3 {[%clk 0:02:48.9]} 12...
Rc8 {[%clk 0:03:05.8]} 13. Bg5 {[%clk 0:02:48.9]} 13... Be7 {[%clk 0:03:05.5]}
14. Rad1 {[%clk 0:02:46.8]} 14... h6 {[%clk 0:03:04.3]} 15. Bh4 {[%clk
0:02:47.1]} 15... Nh5 {[%clk 0:02:49.9]} 16. Bg3 {[%clk 0:02:26.3]} 16... Nxg3
{[%clk 0:02:49.3]} 17. hxg3 {[%clk 0:02:26.1]} 17... Qc7 {[%clk 0:02:40.3]} 18.
Rc1 {[%clk 0:02:16.5]} 18... Qb6 {[%clk 0:02:38.7]} 19. Rfd1 {[%clk 0:02:14.7]}
19... Nc5 {[%clk 0:02:38.8]} 20. Bc2 {[%clk 0:02:13]} 20... Rfd8 {[%clk
0:02:36.5]} 21. b4 {[%clk 0:01:43.8]} 21... Nd7 {[%clk 0:02:32.6]} 22. Bb1
{[%clk 0:01:32.2]} 22... Nf6 {[%clk 0:02:09.5]} 23. e5 {[%clk 0:01:14.2]} 23...
Nd5 {[%clk 0:02:08.4]} 24. Ne4 {[%clk 0:01:06.2]} 24... Rxc1 {[%clk 0:02:05]}
25. Rxc1 {[%clk 0:01:05.7]} 25... a5 {[%clk 0:01:47.4]} 26. Nc5 {[%clk
0:00:55.8]} 26... axb4 {[%clk 0:01:33.9]} 27. axb4 {[%clk 0:00:37.9]} 27... Nxb4
{[%clk 0:01:33.9]} 28. Nxb7 {[%clk 0:00:38.1]} 28... Qxb7 {[%clk 0:01:34.5]} 29.
Be4 {[%clk 0:00:39.6]} 29... Qd7 {[%clk 0:01:24.6]} 30. Rb1 {[%clk 0:00:39]}
30... Qc7 {[%clk 0:01:06.9]} 31. Qxb5 {[%clk 0:00:37.3]} 31... Nd5 {[%clk
0:00:48.9]} 32. Qb7 {[%clk 0:00:35.2]} 32... Qxb7 {[%clk 0:00:41.5]} 33. Rxb7
{[%clk 0:00:34.7]} 33... Bc5 {[%clk 0:00:40.5]} 34. Kf1 {[%clk 0:00:35.2]} 34...
Nc3 {[%clk 0:00:37.8]} 35. Bc2 {[%clk 0:00:36]} 35... Ra8 {[%clk 0:00:32.8]} 36.
Rc7 {[%clk 0:00:35]} 36... Bb4 {[%clk 0:00:26.3]} 37. Kg1 {[%clk 0:00:30.4]}
37... g6 {[%clk 0:00:26.5]} 38. Rc4 {[%clk 0:00:23]} 38... Nd5 {[%clk
0:00:22.4]} 39. Be4 {[%clk 0:00:22.7]} 39... Ra1+ {[%clk 0:00:15.5]} 40. Kh2
{[%clk 0:00:23.3]} 40... Be7 {[%clk 0:00:16.7]} 41. Rd4 {[%clk 0:00:23.6]} 41...
Ra5 {[%clk 0:00:17.1]} 42. Bxd5 {[%clk 0:00:22.4]} 42... Rxd5 {[%clk 0:00:18.4]}
43. Rxd5 {[%clk 0:00:22.6]} 43... exd5 {[%clk 0:00:20]} 44. Ne1 {[%clk
0:00:22.7]} 44... Bc5 {[%clk 0:00:21]} 45. Nd3 {[%clk 0:00:23.2]} 45... Bd4
{[%clk 0:00:22.6]} 46. f4 {[%clk 0:00:24]} 46... Kf8 {[%clk 0:00:23.7]} 47. Nb4
{[%clk 0:00:24.3]} 47... f6 {[%clk 0:00:21.6]} 48. exf6 {[%clk 0:00:24.2]} 48...
Bxf6 {[%clk 0:00:23.1]} 49. Nxd5 {[%clk 0:00:25.1]} 49... Bd8 {[%clk 0:00:24.8]}
50. Kg1 {[%clk 0:00:23.6]} 50... Kf7 {[%clk 0:00:26]} 51. Kf2 {[%clk 0:00:24.6]}
51... Ke6 {[%clk 0:00:27.4]} 52. Ne3 {[%clk 0:00:23.7]} 52... Bb6 {[%clk
0:00:28.7]} 53. Kf3 {[%clk 0:00:24.7]} 53... Bd4 {[%clk 0:00:29.4]} 54. Ng4
{[%clk 0:00:22.6]} 54... Bg7 {[%clk 0:00:29.7]} 55. Ke4 {[%clk 0:00:22.7]} 55...
h5 {[%clk 0:00:28]} 56. Nf2 {[%clk 0:00:22.4]} 56... Kf7 {[%clk 0:00:28.8]} 57.
Kd5 {[%clk 0:00:21.4]} 57... Bf8 {[%clk 0:00:29.9]} 58. Ne4 {[%clk 0:00:22.1]}
58... Be7 {[%clk 0:00:29.9]} 59. Nf2 {[%clk 0:00:22.9]} 59... Kf6 {[%clk
0:00:30.6]} 60. Ke4 {[%clk 0:00:22.6]} 60... Bf8 {[%clk 0:00:31.1]} 61. g4
{[%clk 0:00:23.6]} 61... Kg7 {[%clk 0:00:17.7]} 62. g5 {[%clk 0:00:20.8]} 62...
Be7 {[%clk 0:00:18]} 63. Ke5 {[%clk 0:00:20.2]} 63... Bd8 {[%clk 0:00:19.4]} 64.
Nd3 {[%clk 0:00:18.6]} 64... Bc7+ {[%clk 0:00:20.8]} 65. Ke6 {[%clk 0:00:19.6]}
65... Bb8 {[%clk 0:00:22.1]} 66. Ne5 {[%clk 0:00:20.4]} 66... Bc7 {[%clk
0:00:23.4]} 67. Kd7 {[%clk 0:00:20.9]} 67... Bb8 {[%clk 0:00:24]} 68. Ke6 {[%clk
0:00:21.7]} 68... Bc7 {[%clk 0:00:24.9]} 69. f5 {[%clk 0:00:17.1]} 69... gxf5
{[%clk 0:00:23.6]} 70. Kxf5 {[%clk 0:00:17.7]} 70... Bb8 {[%clk 0:00:19.5]} 71.
Nd3 {[%clk 0:00:17.3]} 71... Bc7 {[%clk 0:00:20.5]} 72. Nf4 {[%clk 0:00:17.7]}
72... h4 {[%clk 0:00:19.2]} 73. Ng6 {[%clk 0:00:17.3]} 73... Bg3 {[%clk
0:00:18.1]} 74. Ne5 {[%clk 0:00:16.3]} 74... Kh7 {[%clk 0:00:15.8]} 75. Nf3
{[%clk 0:00:15.3]} 75... Kg7 {[%clk 0:00:16.1]} 76. Kg4 {[%clk 0:00:16.1]} 76...
Bc7 {[%clk 0:00:16.9]} 77. Nxh4 {[%clk 0:00:16.9]} 77... Bd8 {[%clk 0:00:18.8]}
78. Kf5 {[%clk 0:00:17.7]} 78... Kf7 {[%clk 0:00:20.2]} 79. g6+ {[%clk
0:00:17.6]} 79... Kg7 {[%clk 0:00:21.7]} 80. Nf3 {[%clk 0:00:18]} 80... Kh6
{[%clk 0:00:22.8]} 81. Ne5 {[%clk 0:00:18.6]} 81... Kg7 {[%clk 0:00:24.2]} 82.
g4 {[%clk 0:00:15.6]} 82... Be7 {[%clk 0:00:25.5]} 83. g5 {[%clk 0:00:16.4]}
83... Bd6 {[%clk 0:00:25.7]} 84. Nd3 {[%clk 0:00:16.8]} 84... Ba3 {[%clk
0:00:24.5]} 85. Nf4 {[%clk 0:00:17.6]} 85... Bb2 {[%clk 0:00:24.6]} 86. Nh5+
{[%clk 0:00:18.2]} 86... Kg8 {[%clk 0:00:25.9]} 87. Ke6 {[%clk 0:00:18.3]} 87...
Ba3 {[%clk 0:00:26]} 88. Kf5 {[%clk 0:00:18.9]} 88... Bb2 {[%clk 0:00:27.3]} 89.
Kg4 {[%clk 0:00:19.6]} 89... Ba1 {[%clk 0:00:28.3]} 90. Nf4 {[%clk 0:00:20.3]}
90... Kg7 {[%clk 0:00:29]} 91. Kh5 {[%clk 0:00:21.1]} 91... Be5 {[%clk
0:00:29.3]} 92. Ne6+ {[%clk 0:00:21.8]} 92... Kg8 {[%clk 0:00:30.6]} 93. Kh6
{[%clk 0:00:22.8]} 93... Bb2 {[%clk 0:00:31.7]} 94. Nc5 {[%clk 0:00:22.9]} 94...
Bg7+ {[%clk 0:00:32.5]} 95. Kh5 {[%clk 0:00:23.6]} 95... Bb2 {[%clk 0:00:34]}
96. Ne4 {[%clk 0:00:23.7]} 96... Bd4 {[%clk 0:00:33.8]} 97. Nf6+ {[%clk
0:00:23.9]} 97... Kg7 {[%clk 0:00:34.9]} 98. Ne8+ {[%clk 0:00:24.8]} 98... Kg8
{[%clk 0:00:34.5]} 99. Nc7 {[%clk 0:00:25.4]} 99... Be5 {[%clk 0:00:35.1]} 100.
Ne6 {[%clk 0:00:26.2]} 100... Ba1 {[%clk 0:00:36.3]} 101. Nf4 {[%clk 0:00:19.5]}
101... Bb2 {[%clk 0:00:36.1]} 102. Kg4 {[%clk 0:00:19.7]} 102... Kg7 {[%clk
0:00:36.7]} 103. Kf5 {[%clk 0:00:20]} 103... Ba1 {[%clk 0:00:37.8]} 104. Nh5+
{[%clk 0:00:20.3]} 104... Kg8 {[%clk 0:00:38.9]} 105. Nf6+ {[%clk 0:00:19.5]}
105... Kg7 {[%clk 0:00:40]} 106. Ne8+ {[%clk 0:00:19.8]} 106... Kg8 {[%clk
0:00:41.3]} 107. Nc7 {[%clk 0:00:20.3]} 107... Kg7 {[%clk 0:00:42]} 108. Ne6+
{[%clk 0:00:20.9]} 108... Kg8 {[%clk 0:00:43.2]} 109. g7 {[%clk 0:00:13.6]}
109... Bxg7 {[%clk 0:00:35.5]} 110. Kg6 {[%clk 0:00:10.7]} 110... Ba1 {[%clk
0:00:35.7]} 111. Nf4 {[%clk 0:00:11.2]} 111... Bb2 {[%clk 0:00:36.1]} 112. Nh5
{[%clk 0:00:11.8]} 112... Bc1 {[%clk 0:00:36.3]} 113. Nf6+ {[%clk 0:00:11.1]}
113... Kf8 {[%clk 0:00:37.7]} 114. Kf5 {[%clk 0:00:09.7]} 114... Bxg5 {[%clk
0:00:38.1]} 115. Kxg5 {[%clk 0:00:10.5]} 1/2-1/2